bitfinex-derivatives/quotes_BTCF0:USTF0_20220102
["timestamp","ask_amount","ask_price","bid_price","bid_amount"]
[1641149822623,1.44418078,46951.0,46940.0,0.20129593]
[1641149822827,1.56953978,46958.0,46947.0,0.18]
[1641149823025,1.56953978,46958.0,46955.0,0.18]
[1641149823623,1.45006702,46957.0,46955.0,0.18]
[1641149823822,1.45006702,46957.0,46956.0,0.42100701]
[1641149824222,1.45006702,46957.0,46956.0,0.29277881]
[1641149824422,1.45006702,46957.0,46946.0,0.02129757]
[1641149824725,1.45006702,46957.0,46956.0,0.194]
[1641149825923,0.14033567,46957.0,46946.0,0.16163324]
[1641149826224,0.14033567,46957.0,46947.0,0.01210246]
[1641149828625,0.14033567,46957.0,46947.0,0.20510246]
[1641149829028,0.14033567,46957.0,46948.0,0.01210246]
[1641149830027,0.14033567,46957.0,46954.0,0.18]
[1641149830228,0.14033567,46957.0,46954.0,0.23977]
[1641149830433,0.14033567,46961.0,46955.0,0.01210246]
[1641149832230,0.18,46958.0,46955.0,0.01210246]
[1641149832528,0.07569,46958.0,46955.0,0.192]
[1641149833526,0.009794,46960.0,46955.0,0.192]
[1641149833928,0.009794,46960.0,46952.0,0.14033567]
[1641149834527,0.009794,46960.0,46952.0,0.33133567]
[1641149835332,0.00509114,46959.0,46952.0,0.33133567]
[1641149835930,0.00509114,46959.0,46952.0,0.14033567]
[1641149836130,0.00509114,46959.0,46953.0,0.02129438]
[1641149836334,0.00509114,46959.0,46953.0,0.03339637]
[1641149836532,0.00509114,46959.0,46954.0,0.19210199]
[1641149836733,0.00509114,46959.0,46954.0,0.01210199]
[1641149837132,0.00509114,46959.0,46953.0,0.02129438]
[1641149838333,0.00509114,46959.0,46954.0,0.01210177]
[1641149838936,0.00509114,46959.0,46953.0,0.21629438]
[1641149840034,0.00509114,46959.0,46953.0,0.02129438]
[1641149840535,0.00509114,46959.0,46953.0,0.21529438]
[1641149841934,0.00509114,46959.0,46953.0,0.02129438]
[1641149842135,0.00509114,46959.0,46954.0,0.01210164]
[1641149843137,0.12522081,46961.0,46957.0,0.02129265]
[1641149844537,0.12522081,46961.0,46957.0,0.197]
[1641149844538,0.00440352,46960.0,46957.0,0.197]
[1641149846041,0.00440352,46960.0,46952.0,0.16163047]
[1641149846741,0.00440352,46960.0,46953.0,0.01210112]
[1641149848644,0.00440352,46960.0,46953.0,0.20910112]
[1641149849044,0.00440352,46960.0,46954.0,0.01210112]
[1641149850846,0.00440352,46960.0,46954.0,0.197]
[1641149851047,0.00440352,46960.0,46955.0,0.01210112]
[1641149852347,0.00440352,46960.0,46953.0,0.19210112]
[1641149852547,0.00440352,46960.0,46956.0,0.01210112]
[1641149852747,0.00440352,46960.0,46955.0,0.198]
[1641149853146,0.00440352,46960.0,46956.0,0.01210112]
[1641149854547,0.00440352,46960.0,46953.0,0.01210112]
[1641149854746,0.00440352,46960.0,46956.0,0.197]
[1641149855648,0.00440352,46960.0,46957.0,0.01210112]
[1641149856351,0.00440352,46960.0,46952.0,0.16163047]
[1641149856650,0.00440352,46960.0,46957.0,0.197]
[1641149858052,0.00440352,46960.0,46953.0,0.18]
[1641149858255,0.00440352,46960.0,46952.0,0.16163047]
[1641149858464,0.00440352,46960.0,46954.0,0.01210092]
[1641149859183,0.00440352,46960.0,46953.0,0.38910092]
[1641149859381,0.00440352,46960.0,46955.0,0.01210092]
[1641149859580,0.00440352,46960.0,46954.0,0.01210092]
[1641149859780,0.00440352,46960.0,46956.0,0.01210092]
[1641149859981,0.00440352,46960.0,46955.0,0.01210092]
[1641149860281,0.00440352,46960.0,46957.0,0.01210092]
[1641149860580,0.00440352,46960.0,46956.0,0.01210092]
[1641149860780,0.00440352,46960.0,46958.0,0.01210092]
[1641149860983,0.00440352,46960.0,46957.0,0.01210092]
[1641149861182,0.00440352,46960.0,46959.0,0.01210092]
[1641149861583,0.00440352,46960.0,46956.0,0.01210092]
[1641149861783,0.00440352,46960.0,46959.0,0.50197811]
[1641149861784,0.36680582,46960.0,46959.0,0.50197811]
[1641149862583,0.36680582,46960.0,46959.0,0.69897811]
[1641149862784,0.36680582,46960.0,46959.0,1.04094646]
[1641149863184,0.36680582,46960.0,46959.0,1.05304735]
[1641149863484,0.36680582,46960.0,46959.0,1.55502546]
[1641149863889,0.36680582,46960.0,46959.0,1.35802546]
[1641149864085,0.36680582,46960.0,46959.0,0.514079]
[1641149864788,0.36680582,46960.0,46959.0,0.711079]
[1641149865788,0.36680582,46960.0,46959.0,1.5541876]
[1641149865988,0.36680582,46960.0,46959.0,1.3571876]
[1641149866188,0.36680582,46960.0,46959.0,0.514079]
[1641149866692,0.36680582,46960.0,46959.0,0.710079]
[1641149867792,1.07858386,46966.0,46960.0,1.112]
[1641149867990,1.56953978,46980.0,46966.0,1.112]
[1641149868189,1.47243978,46980.0,46979.0,0.60100701]
[1641149868391,5.8638,47000.0,46979.0,0.67581101]
[1641149868790,5.8638,47000.0,46985.0,0.18]
[1641149868990,0.00384702,46989.0,46986.0,0.009794]
[1641149869193,0.00384702,46989.0,46986.0,0.02188931]
[1641149869390,0.00384702,46989.0,46988.0,0.20127758]
[1641149869592,0.00384702,46989.0,46988.0,0.02127758]
[1641149869792,0.00384702,46989.0,46988.0,0.03337289]
[1641149870091,0.18,46989.0,46979.0,0.28067134]
[1641149870292,0.18,46985.0,46979.0,0.28067134]
[1641149870491,0.189794,46988.0,46979.0,0.28067134]
[1641149870691,0.00384702,46984.0,46980.0,0.01209509]
[1641149871394,0.18,46984.0,46980.0,0.01209509]
[1641149871594,0.00384702,46983.0,46980.0,0.01209509]
[1641149872192,0.18,46984.0,46980.0,0.01209509]
[1641149872592,0.00384702,46982.0,46981.0,0.72405613]
[1641149872793,0.00384702,46983.0,46981.0,0.72405613]
[1641149872993,0.00384702,46982.0,46981.0,0.72405613]
[1641149873293,0.00384702,46983.0,46981.0,0.72405613]
[1641149873492,0.00384702,46982.0,46981.0,0.72405613]
[1641149874093,0.00384702,46983.0,46979.0,0.28067134]
[1641149874293,0.18,46980.0,46979.0,0.14033567]
[1641149874692,0.18384702,46980.0,46979.0,0.33133567]
[1641149874892,0.20513773,46980.0,46970.0,1.58003539]
[1641149875092,0.02513773,46980.0,46970.0,1.58003539]
[1641149875292,0.00384702,46980.0,46971.0,0.02128635]
[1641149875497,0.00384702,46979.0,46971.0,0.03338388]
[1641149875794,0.00384702,46979.0,46972.0,0.01209753]
[1641149875993,0.18384702,46980.0,46972.0,0.01209753]
[1641149876195,0.00384702,46978.0,46972.0,0.01209753]
[1641149876396,0.00384702,46979.0,46976.0,0.84058864]
[1641149876596,0.00384702,46977.0,46976.0,0.84058864]
[1641149876794,0.17084702,46978.0,46976.0,0.84058864]
[1641149876999,0.00384702,46977.0,46976.0,0.84058864]
[1641149877395,0.00384702,46977.0,46976.0,0.85268525]
[1641149878001,0.00384702,46977.0,46976.0,0.84058864]
[1641149878398,0.00384702,46977.0,46971.0,0.02128635]
[1641149878598,0.00384702,46977.0,46975.0,1.3209203]
[1641149878798,0.18584702,46977.0,46976.0,0.20028413]
[1641149878998,0.182,46977.0,46976.0,0.20028382]
[1641149879198,0.182,46977.0,46976.0,0.21238003]
[1641149879398,0.182,46977.0,46976.0,0.20028382]
[1641149879999,0.182,46977.0,46976.0,0.0333804]
[1641149880197,0.14033567,46981.0,46976.0,0.0333804]
[1641149880798,0.18,46977.0,46976.0,1.53103034]
[1641149881000,1.38904406,46980.0,46976.0,1.51893376]
[1641149881200,1.20904406,46980.0,46976.0,1.51893376]
[1641149881603,0.32333567,46981.0,46976.0,0.20028382]
[1641149881800,0.50333567,46981.0,46976.0,0.20028382]
[1641149882002,0.18,46980.0,46976.0,0.02128382]
[1641149882402,0.14033567,46981.0,46976.0,0.02128382]
[1641149882901,0.14033567,46981.0,46977.0,0.01209616]
[1641149883102,0.14033567,46981.0,46976.0,0.20628382]
[1641149883304,1.14504406,46994.0,46980.0,0.20127523]
[1641149883506,1.00493047,46997.0,46993.0,0.20127331]
[1641149883705,1.00493047,46999.0,46997.0,1.112]
[1641149883904,0.85773047,46999.0,46998.0,1.301794]
[1641149884106,0.85773047,46999.0,46998.0,1.303863]
[1641149884305,0.85773047,46999.0,46998.0,1.82236661]
[1641149884504,0.85773047,46999.0,46998.0,1.8344592]
[1641149884708,0.85773047,46999.0,46998.0,0.9114592]
[1641149884904,0.85773047,46999.0,46998.0,0.6230996]
[1641149885105,1.45069101,47002.0,46998.0,0.6220996]
[1641149885507,0.18,47006.0,46998.0,0.6220996]
[1641149885706,0.18,47006.0,46999.0,0.01209259]
[1641149886308,0.18,47006.0,47004.0,0.14033567]
[1641149887416,0.14033567,47014.0,47004.0,0.14033567]
[1641149887613,0.18,47006.0,47004.0,0.14033567]
[1641149888513,0.14033567,47014.0,47004.0,0.14033567]
[1641149888713,0.14033567,47014.0,47004.0,0.32833567]
[1641149888914,0.18,47011.0,47004.0,0.32833567]
[1641149889113,0.14033567,47014.0,47004.0,0.32833567]
[1641149889313,0.32033567,47014.0,47004.0,0.33812967]
[1641149890114,0.32033567,47014.0,47004.0,0.15012967]
[1641149891516,0.14033567,47014.0,47004.0,0.15012967]
[1641149891714,0.32033567,47014.0,47004.0,0.15012967]
[1641149894125,0.00379531,47013.0,47004.0,0.15012967]
[1641149894427,0.00379531,47013.0,47004.0,0.29046534]
[1641149895029,0.00379531,47013.0,47004.0,0.47446534]
[1641149895427,0.18,47007.0,47004.0,0.33412967]
[1641149895626,0.18,47007.0,47004.0,0.32433567]
[1641149895827,0.18,47012.0,47004.0,0.32433567]
[1641149896028,0.00379531,47006.0,47004.0,0.32433567]
[1641149896226,0.00379531,47011.0,47004.0,0.32433567]
[1641149896428,0.00379531,47005.0,47004.0,0.32433567]
[1641149896926,0.00379531,47010.0,47004.0,0.33633567]
[1641149897127,0.00379531,47005.0,47004.0,0.33633567]
[1641149897327,0.00379531,47009.0,47004.0,0.33633567]
[1641149897534,0.00379531,47005.0,47004.0,0.33633567]
[1641149897728,0.00379531,47008.0,47004.0,0.33733567]
[1641149897928,0.00379531,47005.0,47004.0,0.33633567]
[1641149898128,0.00379531,47005.0,47004.0,0.33733567]
[1641149898329,0.258754,47005.0,47004.0,0.14033567]
[1641149898530,0.26254931,47005.0,47004.0,0.14033567]
[1641149898728,0.25275531,47005.0,47004.0,0.14033567]
[1641149898928,0.25275531,47005.0,47004.0,0.31833567]
[1641149899729,0.25275531,47005.0,47004.0,1.28566861]
[1641149899928,0.25275531,47005.0,47000.0,0.14033567]
[1641149899929,0.25275531,47005.0,47003.0,1.18494671]
[1641149900133,0.18,47004.0,47003.0,1.18494671]
[1641149900328,0.32033567,47004.0,47003.0,1.18494671]
[1641149900628,0.32413098,47004.0,47003.0,1.18494671]
[1641149901029,0.51113098,47004.0,47003.0,1.18494671]
[1641149901229,0.51113098,47004.0,47003.0,0.83676055]
[1641149901429,1.62313098,47004.0,47003.0,0.83676055]
[1641149902130,1.43613098,47004.0,47001.0,0.29276055]
[1641149902332,1.43613098,47004.0,46999.0,1.18494671]
[1641149902530,0.18,47000.0,46999.0,1.18494671]
[1641149902934,0.18379531,47000.0,46998.0,1.18494671]
[1641149903433,0.00379531,46999.0,46998.0,1.18494671]
[1641149903833,1.21312969,46999.0,46998.0,1.18494671]
[1641149904134,1.21312969,46999.0,46994.0,1.30334339]
[1641149904336,0.18,46995.0,46991.0,1.43969972]
[1641149904537,0.18,46992.0,46991.0,1.43969972]
[1641149904734,0.189794,46992.0,46991.0,1.43969972]
[1641149905337,0.19358931,46992.0,46991.0,1.43969972]
[1641149905535,1.30558931,46992.0,46991.0,0.46389972]
[1641149905735,1.30558931,46992.0,46984.0,1.55965136]
[1641149905935,0.18,46989.0,46984.0,1.55965136]
[1641149906138,0.18,46989.0,46979.0,0.02128287]
[1641149906437,0.00379531,46988.0,46980.0,0.01209424]
[1641149906936,0.19579531,46988.0,46980.0,0.01209424]
[1641149907437,0.00379531,46987.0,46980.0,0.01209424]
[1641149907636,0.18,46985.0,46980.0,0.01209424]
[1641149907841,0.00379531,46987.0,46980.0,0.01209424]
[1641149908638,0.18,46985.0,46980.0,0.01209424]
[1641149908839,0.00379531,46987.0,46980.0,0.01209424]
[1641149909041,0.00379531,46984.0,46980.0,0.01209424]
[1641149909239,0.00379531,46986.0,46980.0,0.01209424]
[1641149909740,0.00379531,46983.0,46980.0,0.01209424]
[1641149909943,0.00379531,46985.0,46980.0,0.01209424]
[1641149910139,0.00379531,46982.0,46980.0,0.01209424]
[1641149910540,0.19,46987.0,46980.0,0.01209424]
[1641149910541,0.00379531,46984.0,46980.0,0.01209424]
[1641149910739,0.00379531,46981.0,46980.0,0.01209424]
[1641149911140,0.158,46982.0,46980.0,0.01209424]
[1641149911541,0.00379531,46981.0,46980.0,0.01209424]
[1641149913043,0.172,46981.0,46980.0,0.01209424]
[1641149913243,0.17579531,46981.0,46980.0,0.01209424]
[1641149913844,0.17579531,46981.0,46980.0,0.2133727]
[1641149914043,9.531e-05,46981.0,46980.0,0.2231667]
[1641149914442,0.60476194,46987.0,46980.0,0.2241667]
[1641149914644,0.60476194,46987.0,46986.0,0.32033567]
[1641149915243,0.6080613,46987.0,46986.0,0.33242726]
[1641149915453,0.00329936,46987.0,46986.0,0.33242726]
[1641149915644,0.60476194,46992.0,46986.0,0.33242726]
[1641149915844,0.60476194,46992.0,46989.0,0.18]
[1641149916046,0.60476194,46992.0,46991.0,0.0212766]
[1641149916245,0.60476194,46992.0,46991.0,0.1017566]
[1641149916645,0.60476194,46992.0,46991.0,0.24209227]
[1641149916846,0.60476194,46994.0,46991.0,0.24209227]
[1641149917047,0.60476194,46994.0,46991.0,0.4491832]
[1641149917448,0.00326551,46993.0,46992.0,1.44559572]
[1641149917647,0.00326551,46993.0,46992.0,2.41307812]
[1641149918353,0.00326551,46995.0,46992.0,2.41307812]
[1641149918650,0.00326551,46993.0,46992.0,2.41307812]
[1641149918949,0.00326551,46993.0,46992.0,2.59398719]
[1641149919148,0.00326551,46994.0,46992.0,2.59398719]
[1641149919350,0.00326551,46993.0,46992.0,2.60607831]
[1641149919750,0.00326551,46993.0,46992.0,2.59398719]
[1641149920149,0.00326551,46995.0,46992.0,1.62650479]
[1641149920349,0.00326551,46995.0,46991.0,0.16161227]
[1641149920350,0.00326551,46993.0,46991.0,0.16161227]
[1641149920550,0.00326551,46994.0,46991.0,0.16161227]
[1641149920952,0.00326551,46998.0,46991.0,0.35661227]
[1641149921151,0.00326551,46993.0,46991.0,0.35661227]
[1641149921351,0.00326551,46997.0,46991.0,0.35661227]
[1641149921552,0.00326551,46992.0,46991.0,0.35661227]
[1641149922053,0.00326551,46998.0,46991.0,0.35661227]
[1641149922253,0.00326551,46992.0,46991.0,0.16161227]
[1641149922651,0.18,46999.0,46991.0,0.16261227]
[1641149922851,0.18,46999.0,46991.0,0.16161227]
[1641149923052,0.18,46999.0,46991.0,0.35561227]
[1641149924458,0.14033567,47004.0,46998.0,0.20127293]
[1641149924653,1.9609,47005.0,47002.0,0.14033567]
[1641149924856,1.20952713,47016.0,47002.0,0.14033567]
[1641149925056,0.84666671,47013.0,47002.0,0.14033567]
[1641149925556,0.78476194,47012.0,47002.0,0.14033567]
[1641149925857,0.009794,47013.0,47002.0,0.14033567]
[1641149926054,0.18,47012.0,47002.0,0.14033567]
[1641149926857,0.18,47012.0,47009.0,0.83377652]
[1641149927057,1.33047626,47011.0,47010.0,0.59555466]
[1641149928759,1.63142865,47012.0,47009.0,0.35778894]
[1641149928958,2.74342865,47012.0,47009.0,0.35778894]
[1641149930562,0.02127626,47011.0,47009.0,0.35778894]
[1641149931063,2.70376432,47010.0,47007.0,0.35778894]
[1641149931259,1.292,47008.0,47005.0,0.59555466]
[1641149931460,0.009794,47007.0,47002.0,1.19110931]
[1641149931759,0.18,47003.0,47002.0,1.19110931]
[1641149931960,1.292,47003.0,47002.0,1.19110931]
[1641149932161,1.292,47003.0,47000.0,1.19110931]
[1641149932762,0.06629569,47002.0,47000.0,1.19110931]
[1641149932962,0.14033567,47001.0,47000.0,1.19110931]
[1641149933367,0.14033567,47001.0,46998.0,1.19110931]
[1641149934277,0.14033567,47001.0,47000.0,1.19110931]
[1641149934976,0.31533567,47001.0,47000.0,1.37010931]
[1641149936384,0.14033567,47001.0,46999.0,1.19110931]
[1641149936982,0.32533567,47001.0,46999.0,1.36410931]
[1641149937783,0.32533567,47001.0,47000.0,1.19110931]
[1641149938384,0.14033567,47001.0,47000.0,1.19110931]
[1641149939087,0.32733567,47001.0,47000.0,1.36510931]
[1641149939488,0.32733567,47001.0,47000.0,0.174]
[1641149940390,0.14033567,47001.0,47000.0,0.8358495]
[1641149940992,0.32533567,47001.0,47000.0,0.173]
[1641149941893,0.32533567,47001.0,47000.0,1.0088495]
[1641149942491,0.14033567,47001.0,47000.0,0.8358495]
[1641149943092,0.31633567,47001.0,47000.0,0.18]
[1641149943692,0.38610567,47001.0,47000.0,0.18]
[1641149944393,0.21010567,47001.0,47000.0,0.8358495]
[1641149944993,0.39510567,47001.0,47000.0,0.9978495]
[1641149946196,1.1732363,47003.0,47000.0,1.9778495]
[1641149946396,0.3197,47028.0,47002.0,1.693]
[1641149946600,0.3397,47029.0,47009.0,1.112]
[1641149946796,1.8147,47038.0,47018.0,0.8]
[1641149947097,1.8147,47038.0,47030.0,0.14033567]
[1641149947098,0.42608189,47032.0,47030.0,0.14033567]
[1641149947295,0.42608189,47032.0,47030.0,0.23012567]
[1641149947495,1.7652344,47041.0,47030.0,0.23012567]
[1641149947697,0.18,47039.0,47030.0,0.23012567]
[1641149948297,0.18,47036.0,47030.0,0.23012567]
[1641149948502,0.18,47032.0,47030.0,0.14033567]
[1641149948699,0.18,47032.0,47031.0,0.96734452]
[1641149948999,0.18,47032.0,47031.0,1.56155227]
[1641149949999,0.18,47032.0,47031.0,0.59420775]
[1641149950201,0.18,47032.0,47030.0,0.33233567]
[1641149950401,0.18,47032.0,47030.0,0.14033567]
[1641149951204,0.18,47032.0,47030.0,0.31533567]
[1641149952002,0.001,47031.0,47030.0,0.31533567]
[1641149952202,1.45143021,47031.0,47030.0,0.31533567]
[1641149952402,1.4726975,47031.0,47026.0,0.59420775]
[1641149952601,1.292,47027.0,47024.0,0.83189084]
[1641149952800,0.02127186,47025.0,47022.0,1.18841549]
[1641149953006,0.02127186,47025.0,47008.0,1.54826523]
[1641149953007,1.57267134,47023.0,47008.0,1.54826523]
[1641149953202,0.18,47017.0,47008.0,1.54826523]
[1641149954502,0.18,47017.0,47007.0,0.96721937]
[1641149954503,0.18,47012.0,47007.0,0.96721937]
[1641149954703,0.25118,47012.0,47009.0,0.01208844]
[1641149954903,0.25118,47012.0,47008.0,0.01208844]
[1641149955105,0.25118,47012.0,47010.0,0.01208844]
[1641149955402,0.25118,47012.0,47009.0,0.01208844]
[1641149955603,0.25118,47012.0,47007.0,1.15721937]
[1641149956003,0.25118,47012.0,47008.0,0.0120886]
[1641149956203,0.25118,47012.0,47010.0,0.96721937]
[1641149957006,0.18,47012.0,47010.0,0.96721937]
[1641149957203,0.18,47012.0,47010.0,1.15821937]
[1641149957705,0.18,47012.0,47010.0,0.191]
[1641149958305,0.18,47012.0,47009.0,0.96721937]
[1641149958505,0.18,47012.0,47011.0,0.96721937]
[1641149959204,0.18,47012.0,47011.0,0.191]
[1641149960409,0.02127252,47019.0,47011.0,0.191]
[1641149961006,0.18,47012.0,47006.0,0.14033567]
[1641149961210,0.18,47012.0,47011.0,0.184]
[1641149962508,0.18,47012.0,47006.0,0.97489487]
[1641149962909,0.18,47012.0,47007.0,0.0120885]
[1641149963310,0.05693,47017.0,47007.0,0.0120885]
[1641149963509,0.18,47012.0,47007.0,0.0120885]
[1641149963709,0.02127252,47019.0,47007.0,0.0120885]
[1641149963909,0.03106652,47019.0,47007.0,0.0120885]
[1641149964109,0.18,47010.0,47007.0,0.0120885]
[1641149964510,0.18,47010.0,47008.0,0.35657342]
[1641149964712,0.18,47013.0,47008.0,0.35657342]
[1641149964909,0.10199448,47015.0,47008.0,0.35657342]
[1641149965110,0.10199448,47015.0,47008.0,0.54457342]
[1641149965311,0.10199448,47015.0,47008.0,0.188]
[1641149965510,0.02127448,47015.0,47008.0,0.188]
[1641149966111,0.009794,47019.0,47008.0,0.188]
[1641149966511,0.009794,47019.0,47006.0,0.14033567]
[1641149966712,0.009794,47019.0,47006.0,0.49690909]
[1641149967112,0.009794,47019.0,47006.0,0.68090909]
[1641149967417,0.009794,47019.0,47007.0,0.01208855]
[1641149967835,0.009794,47019.0,47006.0,0.68090909]
[1641149968013,0.009794,47019.0,47008.0,0.03335772]
[1641149968213,0.009794,47019.0,47009.0,0.02126924]
[1641149968412,0.009794,47019.0,47009.0,0.03335729]
[1641149968615,0.009794,47019.0,47010.0,0.01208805]
[1641149968815,0.009794,47019.0,47010.0,0.36866147]
[1641149969214,0.009794,47019.0,47011.0,0.15242372]
[1641149969415,0.009794,47019.0,47011.0,0.14033567]
[1641149969815,0.009794,47019.0,47012.0,0.01208701]
[1641149970018,0.28067134,47023.0,47012.0,0.01208701]
[1641149970217,1.43847837,47034.0,47023.0,1.112]
[1641149970417,1.42747837,47034.0,47032.0,0.18]
[1641149970616,0.416,47048.0,47033.0,0.0212546]
[1641149970817,1.32718717,47036.0,47033.0,0.0872646]
[1641149971217,1.32718717,47036.0,47035.0,0.42100701]
[1641149971817,0.18,47036.0,47035.0,0.42100701]
[1641149973116,0.18,47036.0,47035.0,0.60600701]
[1641149974220,0.009794,47037.0,47035.0,0.60600701]
[1641149974417,0.18,47036.0,47035.0,0.42100701]
[1641149975219,1.292,47036.0,47035.0,0.60700701]
[1641149975432,0.18,47036.0,47035.0,0.60700701]
[1641149975634,0.181,47036.0,47035.0,0.60700701]
[1641149976234,0.18,47036.0,47035.0,0.60700701]
[1641149976434,0.18,47036.0,47035.0,0.42100701]
[1641149977237,0.18,47036.0,47035.0,0.60700701]
[1641149977834,0.03105873,47037.0,47035.0,0.60700701]
[1641149978035,1.292,47036.0,47035.0,0.60700701]
[1641149978235,0.18,47036.0,47035.0,0.60700701]
[1641149978438,0.18,47036.0,47035.0,0.42100701]
[1641149979135,0.18,47036.0,47035.0,0.60700701]
[1641149980535,0.18,47036.0,47035.0,0.42100701]
[1641149981235,0.18,47036.0,47035.0,0.60500701]
[1641149982435,0.18,47036.0,47035.0,0.42100701]
[1641149982936,1.38176,47036.0,47019.0,0.02126473]
[1641149983136,0.18,47031.0,47019.0,0.02126473]
[1641149983336,0.18,47024.0,47020.0,0.01208485]
[1641149983536,0.14033567,47028.0,47020.0,0.01208485]
[1641149983737,0.18,47024.0,47017.0,0.49690909]
[1641149984138,0.18,47024.0,47021.0,0.0120849]
[1641149984440,0.18,47024.0,47018.0,0.0120849]
[1641149984638,0.18,47024.0,47017.0,0.14033567]
[1641149984937,0.18,47024.0,47019.0,0.01208517]
[1641149985138,0.009794,47023.0,47018.0,0.01208517]
[1641149985340,0.009794,47023.0,47020.0,0.01208517]
[1641149985537,0.009794,47023.0,47019.0,0.01208517]
[1641149985938,0.009794,47023.0,47017.0,0.33333567]
[1641149986238,0.009794,47023.0,47017.0,0.68990909]
[1641149986438,0.009794,47023.0,47018.0,0.0120853]
[1641149987239,0.009794,47023.0,47018.0,0.2050853]
[1641149987639,0.009794,47023.0,47018.0,0.193]
[1641149988740,0.009794,47023.0,47017.0,0.14033567]
[1641149989139,0.009794,47023.0,47018.0,0.01208563]
[1641149991142,0.009794,47023.0,47018.0,0.20408563]
[1641149991542,0.0826116,47032.0,47018.0,0.192]
[1641149991743,0.14033567,47028.0,47019.0,0.01208504]
[1641149992442,0.14033567,47028.0,47020.0,0.18]
[1641149992845,1.25233567,47037.0,47019.0,0.36865846]
[1641149993043,0.0001,47050.0,47036.0,0.18]
[1641149993245,0.0001,47050.0,47047.0,0.18]
[1641149993443,0.0001,47050.0,47047.0,0.38488003]
[1641149993644,1.69007907,47065.0,47047.0,0.80588704]
[1641149993943,1.69007907,47065.0,47053.0,0.02124714]
[1641149994143,1.69007907,47065.0,47053.0,0.03104114]
[1641149994346,1.56729946,47067.0,47053.0,0.009794]
[1641149994542,1.56639946,47067.0,47053.0,0.009794]
[1641149994743,1.56639946,47067.0,47056.0,0.02124836]
[1641149994943,1.56639946,47067.0,47057.0,0.18]
[1641149995142,1.56639946,47067.0,47066.0,0.02124279]
[1641149995344,1.56639946,47067.0,47060.0,0.02124625]
[1641149995543,0.0001,47070.0,47060.0,0.02124625]
[1641149995743,1.62489873,47089.0,47066.0,0.30191338]
[1641149995744,0.18,47082.0,47066.0,0.30191338]
[1641149995946,0.052,47080.0,47070.0,0.008]
[1641149996343,0.172,47077.0,47070.0,0.008]
[1641149996744,0.172,47074.0,47066.0,0.28867134]
[1641149996948,0.172,47074.0,47066.0,0.28067134]
[1641149996949,0.172,47071.0,47066.0,0.28067134]
[1641149997149,0.172,47067.0,47066.0,0.28067134]
[1641149997346,0.172,47067.0,47066.0,0.46767134]
[1641149997544,0.173,47067.0,47066.0,0.187]
[1641149998548,0.173,47067.0,47060.0,0.14033567]
[1641149998747,0.172,47067.0,47060.0,0.14033567]
[1641149999347,0.172,47067.0,47060.0,0.32633567]
[1641149999747,0.001,47062.0,47060.0,0.32633567]
[1641149999945,0.001,47061.0,47060.0,0.32633567]
[1641150000145,0.08462,47063.0,47060.0,0.32633567]
[1641150000545,0.08462,47063.0,47060.0,0.14033567]
[1641150000746,0.25662,47063.0,47060.0,0.14033567]
[1641150000946,0.08462,47063.0,47060.0,0.14833567]
[1641150001347,0.19325405,47061.0,47060.0,0.32933567]
[1641150001548,1.30525405,47061.0,47047.0,0.02125231]
[1641150001747,1.30525405,47061.0,47043.0,0.02125405]
[1641150001748,0.172,47050.0,47049.0,0.02597342]
[1641150001952,1.37332962,47050.0,47041.0,1.28642402]
[1641150002150,1.20132962,47050.0,47047.0,0.3510658]
[1641150002349,1.112,47046.0,47044.0,0.8345592]
[1641150002551,0.009794,47045.0,47044.0,0.8345592]
[1641150002752,0.009794,47045.0,47044.0,0.8064592]
[1641150003250,0.191794,47045.0,47044.0,0.8064592]
[1641150003451,1.304794,47045.0,47042.0,1.19210114]
[1641150003657,0.14033567,47043.0,47042.0,1.19210114]
[1641150004052,0.182,47045.0,47034.0,0.06]
[1641150004254,0.182,47045.0,47043.0,0.008]
[1641150005151,0.0001,47044.0,47036.0,0.008]
[1641150005351,0.0001,47044.0,47043.0,0.182]
[1641150006052,0.0001,47044.0,47043.0,0.19]
[1641150006354,0.0001,47044.0,47043.0,0.182]
[1641150006552,0.0001,47044.0,47040.0,0.008]
[1641150006752,0.1721,47044.0,47039.0,1.42675969]
[1641150007353,0.2921,47044.0,47039.0,1.61175969]
[1641150007552,0.172,47040.0,47039.0,1.61175969]
[1641150007954,0.172,47040.0,47039.0,0.185]
[1641150008151,0.1721,47040.0,47039.0,0.185]
[1641150008552,0.0001,47040.0,47031.0,0.189794]
[1641150008754,0.0001,47040.0,47039.0,0.008]
[1641150009453,0.0001,47040.0,47039.0,0.195]
[1641150010253,0.0001,47040.0,47039.0,0.375]
[1641150010452,0.0001,47040.0,47039.0,0.315]
[1641150010653,0.0001,47040.0,47039.0,0.188]
[1641150011154,0.0001,47040.0,47039.0,0.008]
[1641150011353,0.0001,47040.0,47039.0,0.197]
[1641150011556,0.0001,47040.0,47039.0,0.377]
[1641150011754,0.0001,47040.0,47039.0,0.35859181]
[1641150011953,0.0001,47040.0,47039.0,0.53859181]
[1641150012556,0.0001,47040.0,47039.0,0.34959181]
[1641150012757,0.0001,47040.0,47039.0,0.14033567]
[1641150012959,1.1121,47040.0,47038.0,0.57602294]
[1641150013157,0.5,47039.0,47037.0,0.82014511]
[1641150013356,1.80526789,47038.0,47031.0,1.28642402]
[1641150013556,1.284,47032.0,47031.0,1.28642402]
[1641150013756,1.42433567,47032.0,47031.0,1.28642402]
[1641150013959,1.25233567,47032.0,47031.0,1.28642402]
[1641150014160,0.14033567,47032.0,47030.0,0.008]
[1641150014358,1.1121,47031.0,47024.0,0.35261056]
[1641150014759,1.17432694,47031.0,47024.0,0.35261056]
[1641150015759,1.17432694,47031.0,47024.0,0.14033567]
[1641150016059,1.34632694,47031.0,47024.0,0.13933567]
[1641150016260,1.34632694,47031.0,47021.0,0.35261056]
[1641150016665,0.172,47028.0,47021.0,0.35261056]
[1641150016862,0.24289,47028.0,47021.0,0.35261056]
[1641150017061,0.24289,47028.0,47018.0,0.35261056]
[1641150017262,0.25689,47028.0,47018.0,0.35261056]
[1641150017662,0.25689,47028.0,47027.0,0.0079]
[1641150017862,0.186,47028.0,47027.0,0.0079]
[1641150018268,0.186,47028.0,47022.0,0.009794]
[1641150018465,0.186,47028.0,47020.0,0.37261056]
[1641150018663,0.23023,47029.0,47020.0,0.37261056]
[1641150018864,0.1721,47026.0,47021.0,0.35261056]
[1641150019167,0.23023,47029.0,47021.0,0.35261056]